fUST/lending_fUST_20240430
["ID","MTS","AMOUNT","RATE_DAILY","PERIOD"]
[324934246,1714438241916,-1192.06603489,0.00031848,14]
[324934247,1714438241925,-224.62805428,0.00031848,10]
[324934248,1714438241934,-286.55434273,0.00031848,2]
[324934249,1714438241944,-5455.20390675,0.00031848,2]
[324934250,1714438241954,-4087.68306417,0.00031848,2]
[324934251,1714438241963,-315.48630084,0.00031848,2]
[324934252,1714438241973,-281.12466351,0.00031848,2]
[324934253,1714438241982,-4578.11340256,0.00031848,2]
[324934254,1714438241991,-1022.94863432,0.00031848,10]
[324934255,1714438242001,-19196.75151336,0.00031848,2]
[324934256,1714438242010,-6632.5736523,0.00031848,5]
[324934257,1714438242019,-469.05936293,0.00031848,2]
[324934258,1714438242029,-430.70263388,0.00031848,2]
[324934259,1714438242038,-3011.72564414,0.00031848,2]
[324934260,1714438242047,-2867.67739548,0.00031848,2]
[324934261,1714438242056,-1003.38381317,0.00031848,2]
[324934262,1714438242066,-977.55062889,0.00031848,2]
[324934263,1714438242075,-153.34957969,0.00031848,2]
[324934264,1714438242084,-153.34957969,0.00031848,2]
[324934265,1714438242093,-153.34957969,0.00031848,2]
[324934266,1714438242105,-10000.0,0.00031848,60]
[324934267,1714438242114,-150.0,0.00031961,2]
[324934268,1714438242123,-205.0,0.00032,30]
[324934269,1714438242132,-638.7649893,0.00032,4]
[324934270,1714438242142,-217.78218856,0.00032,3]
[324934271,1714438242151,-1210.42661486,0.00032,3]
[324934272,1714438242161,-150.77383924,0.00032049,2]
[324934273,1714438242170,-646.84330158,0.0003215,5]
[324934274,1714438242180,-1273.0,0.00032193,2]
[324934275,1714438242190,-153.83148938,0.00032281,7]
[324934276,1714438242200,-224.34545947,0.00032389,7]
[324934277,1714438242209,-154.7265626,0.0003242,7]
[324934279,1714438242219,-301.54767848,0.00032587,4]
[324934280,1714438242228,-500.0,0.00032876,14]
[324934281,1714438242238,-620.0,0.00032937,2]
[324934282,1714438242248,-150.0,0.00032961,2]
[324934283,1714438242257,-224.0,0.00033,2]
[324934284,1714438242266,-603.09535696,0.00033135,7]
[324934285,1714438242275,-434.54,0.00033296,2]
[324934286,1714438242285,-150.0,0.00033296,2]
[324934287,1714438242294,-210.983,0.00033296,2]
[324934288,1714438242303,-224.837,0.00033296,2]
[324934289,1714438242312,-250.95362535,0.00033397,7]
[324934290,1714438242321,-152.30425248,0.00033445,7]
[324934291,1714438242330,-250.95362535,0.0003347,7]
[324934293,1714438242339,-166.74380429,0.00033692,4]
[324934294,1714438242351,-501.86462815,0.000338,120]
[324934296,1714438242360,-968.12374142,0.0003392,3]
[324934297,1714438242369,-156.18617836,0.00033933,7]
[324934298,1714438242378,-150.0,0.00033961,2]
[324934299,1714438242387,-1206.19071393,0.00033974,30]
[324934300,1714438242396,-466.35092847,0.00034,4]
[324934301,1714438242406,-407.5345672,0.00034,2]
[324934302,1714438242415,-154.7265626,0.00034046,7]
[324934303,1714438242424,-565.05492021,0.00034246,14]
[324934304,1714438242433,-154.7265626,0.00034264,7]
[324934305,1714438242447,-250.95362535,0.00034302,7]
[324934306,1714438242456,-152.30425248,0.00034468,7]
[324934307,1714438242466,-266.55740054,0.00034518,30]
[324934308,1714438242475,-204.921927,0.00034521,2]
[324934309,1714438242484,-349.687077,0.00034521,2]
[324934310,1714438242493,-388.157958,0.00034521,2]
[324934311,1714438242503,-153.83148938,0.00034567,7]
[324934313,1714438242513,-620.0,0.00034584,2]
[324934314,1714438242523,-200.0,0.00034652,120]
[324934316,1714438242533,-1271.52239957,0.00034728,12]
[324934318,1714438242543,-26905.96443452,0.000349,2]
[324934320,1714438242552,-188.0,0.000349,8]
[324934322,1714438242562,-150.0,0.00034961,2]
[324934324,1714438242571,-1025.00357517,0.00035,2]
[324934326,1714438242580,-1329.78267311,0.00035,4]
[324934328,1714438242590,-257.51251505,0.00035,4]
[324934330,1714438242604,-5914.65556104,0.00035,4]
[324934331,1714438242613,-1116.6496876,0.00035,4]
[324934333,1714438242622,-153.83148938,0.00035065,7]
[324934335,1714438242632,-2221.95361571,0.00035076,14]
[324934337,1714438242641,-151.80017164,0.00035111,7]
[324934339,1714438242651,-473.61,0.000352,30]
[324934340,1714438242661,-250.95362535,0.00035495,7]
[324934342,1714438242671,-1765.986201,0.00035616,120]
[324934343,1714438242681,-646.84330158,0.00035632,7]
[324934345,1714438242690,-200.0,0.00035717,120]
[324934347,1714438242700,-154.78330338,0.0003589,2]
[324934348,1714438242710,-373.0,0.0003589,2]
[324934349,1714438242720,-150.0,0.00035961,2]
[324934351,1714438242730,-200.0,0.00035962,120]
[324934352,1714438242739,-2500.0,0.00036,4]
[324934353,1714438242749,-373.0,0.00036,2]
[324934354,1714438242759,-224.0,0.00036,2]
[324934355,1714438242768,-200.0,0.00036006,120]
[324934356,1714438242778,-153.83148938,0.00036098,7]
[324934357,1714438242788,-417.0,0.00036296,2]
[324934358,1714438242798,-150.0,0.00036296,2]
[324934359,1714438242807,-150.0,0.00036296,2]
[324934360,1714438242816,-150.0,0.00036296,2]
[324934361,1714438242826,-154.7265626,0.00036355,7]
[324934362,1714438242835,-250.95362535,0.00036608,7]
[324934363,1714438242845,-156.18617836,0.00036708,7]
[324934364,1714438242860,-250.95362535,0.00036918,7]
[324934365,1714438242870,-3512.35610251,0.00037,2]
[324934366,1714438242879,-200.0,0.0003702,120]
[324934367,1714438242888,-150.0,0.00037135,2]
[324934368,1714438242898,-250.95362535,0.00037208,7]
[324934369,1714438242907,-152.30425248,0.00037209,7]
[324934370,1714438242917,-373.0,0.00037397,2]
[324934372,1714438242926,-250.95362535,0.00037688,7]
[324934373,1714438242935,-1575.6250749,0.00037986,4]
[324934375,1714438242945,-235.64384072,0.00037986,4]
[324934377,1714438242954,-155.07476335,0.00037986,4]
[324934379,1714438242964,-154.84515485,0.00037987,4]
[324934380,1714438242973,-6905.40973764,0.00037987,4]
[324934381,1714438242983,-207.80844426,0.00037987,4]
[324934382,1714438242991,-154.84515485,0.00037987,4]
[324934383,1714438243001,-16228.24523147,0.00037998,60]
[324934384,1714438243009,-1992.22023665,0.00038,30]
[324934385,1714438243018,-200.0,0.00038071,120]
[324934386,1714438243027,-1000.0,0.0003814,2]
[324934387,1714438243036,-153.83148938,0.00038235,7]
[324934388,1714438243046,-209.76615604,0.0003825,3]
[324934389,1714438243056,-537.39377229,0.00038253,4]
[324934390,1714438243065,-1621.09215219,0.00038254,4]
[324934391,1714438243074,-1202.53293628,0.00038254,4]
[324934392,1714438243083,-157.80708891,0.00038254,4]
[324934393,1714438243093,-154.81422293,0.00038254,4]
[324934394,1714438243110,-308.5768874,0.00038254,4]
[324934395,1714438243119,-362.18450158,0.00038254,4]
[324934396,1714438243128,-384.5867347,0.00038254,4]
[324934397,1714438243136,-884.2224895,0.00038254,4]
[324934398,1714438243145,-1877.98244555,0.00038254,4]
[324934399,1714438243155,-154.84515485,0.00038254,4]
[324934400,1714438243163,-980.56647278,0.00038254,4]
[324934401,1714438243173,-1091.35500072,0.00038254,4]
[324934402,1714438243291,-247.45054886,0.00038255,4]
[324934403,1714438243301,-2584.55126401,0.00038255,4]
[324934404,1714438243310,-4176.47807233,0.00038255,4]
[324934405,1714438243319,-1000.0,0.00038343,2]
[324934406,1714438243328,-615.89461758,0.00038352,4]
[324934407,1714438243338,-154.84515485,0.00038352,4]
[324934408,1714438243353,-474.76232162,0.00038352,4]
[324934409,1714438243363,-521.8093147,0.00038352,4]
[324934410,1714438243374,-206.05088003,0.00038352,4]
[324934411,1714438243384,-457.21723132,0.00038352,4]
[324934412,1714438243395,-442.65863885,0.00038352,4]
[324934413,1714438243404,-2629.92511565,0.00038352,4]
[324934414,1714438243415,-408.47253239,0.00038353,4]
[324934415,1714438243425,-193.70470458,0.00038353,4]
[324934416,1714438243435,-537.30467578,0.00038354,4]
[324934417,1714438243447,-447.0489704,0.00038354,10]
[324934418,1714438243462,-154.81422293,0.00038354,7]
[324934419,1714438243473,-713.83575721,0.00038354,2]
[324934420,1714438243483,-159.13598878,0.00038354,4]
[324934421,1714438243493,-278.60389169,0.00038354,4]
[324934422,1714438243503,-886.03521513,0.00038355,4]
[324934423,1714438243514,-37070.73982003,0.00038355,4]
[324934424,1714438243523,-1016.73303549,0.00038356,4]
[324934425,1714438243534,-154.78330338,0.00038356,15]
[324934426,1714438243545,-214.30521006,0.00038356,4]
[324934427,1714438243557,-500.0,0.00038356,30]
[324934428,1714438243567,-500.0,0.00038356,30]
[324934429,1714438243577,-201.80904926,0.00038356,30]
[324934430,1714438243586,-500.0,0.00038356,30]
[324934431,1714438243596,-500.0,0.00038356,30]
[324934432,1714438243620,-500.0,0.00038356,30]
[324934433,1714438243630,-500.0,0.00038356,30]
[324934434,1714438243640,-500.0,0.00038356,30]
[324934435,1714438243650,-500.0,0.00038356,30]
[324934436,1714438243659,-500.0,0.00038356,30]
[324934437,1714438243669,-500.0,0.00038356,30]
[324934438,1714438243678,-500.0,0.00038356,30]
[324934439,1714438243688,-500.0,0.00038356,30]
[324934440,1714438243697,-500.0,0.00038356,30]
[324934441,1714438243707,-500.0,0.00038356,30]
[324934442,1714438243716,-382.92717444,0.00038356,30]
[324934443,1714438243725,-500.0,0.00038356,30]
[324934444,1714438243734,-500.0,0.00038356,30]
[324934445,1714438243743,-500.0,0.00038356,30]
[324934446,1714438243753,-500.0,0.00038356,30]
[324934447,1714438243762,-500.0,0.00038356,30]
[324934448,1714438243771,-195.30808301,0.00038356,30]
[324934449,1714438243780,-500.0,0.00038356,30]
[324934450,1714438243788,-500.0,0.00038356,30]
[324934451,1714438243798,-500.0,0.00038356,30]
[324934452,1714438243807,-500.0,0.00038356,30]
[324934453,1714438243816,-500.0,0.00038356,30]
[324934454,1714438243825,-500.0,0.00038356,30]
[324934455,1714438243834,-500.0,0.00038356,30]
[324934456,1714438243843,-500.0,0.00038356,30]
[324934457,1714438243861,-557.28,0.00038356,30]
[324934458,1714438243870,-500.0,0.00038356,30]
[324934459,1714438243879,-500.0,0.00038356,30]
[324934460,1714438243889,-500.0,0.00038356,30]
[324934461,1714438243898,-500.0,0.00038356,30]
[324934462,1714438243907,-500.0,0.00038356,30]
[324934463,1714438243916,-500.0,0.00038356,30]
[324934464,1714438243926,-500.0,0.00038356,30]
[324934465,1714438243935,-500.0,0.00038356,30]
[324934466,1714438243944,-500.0,0.00038356,30]
[324934467,1714438243954,-500.0,0.00038356,30]
[324934468,1714438243963,-500.0,0.00038356,30]
[324934469,1714438243972,-500.0,0.00038356,30]
[324934470,1714438243981,-305.70787731,0.00038356,30]
[324934471,1714438243991,-510.46,0.00038356,30]
[324934472,1714438244000,-500.0,0.00038356,30]
[324934473,1714438244009,-500.0,0.00038356,30]
[324934474,1714438244018,-500.0,0.00038356,30]
[324934475,1714438244028,-500.0,0.00038356,30]
[324934476,1714438244037,-531.22243147,0.00038356,30]
[324934477,1714438244046,-500.0,0.00038356,30]
[324934478,1714438244055,-500.0,0.00038356,30]
[324934479,1714438244063,-500.0,0.00038356,30]
[324934480,1714438244072,-580.79,0.00038356,30]
[324934481,1714438244081,-621.62077351,0.00038356,30]
[324934482,1714438244090,-500.0,0.00038356,30]
[324934483,1714438244104,-500.0,0.00038356,30]
[324934484,1714438244113,-500.0,0.00038356,30]
[324934485,1714438244122,-500.0,0.00038356,30]
[324934486,1714438244132,-500.0,0.00038356,30]
[324934487,1714438244141,-500.05201726,0.00038356,30]
[324934488,1714438244151,-500.0,0.00038356,30]
[324934489,1714438244160,-500.0,0.00038356,30]
[324934490,1714438244170,-543.74,0.00038356,30]
[324934491,1714438244179,-500.0,0.00038356,30]
[324934492,1714438244187,-500.0,0.00038356,30]
[324934493,1714438244196,-500.0,0.00038356,30]
[324934494,1714438244206,-500.0,0.00038356,30]
[324934495,1714438244215,-500.0,0.00038356,30]
[324934496,1714438244224,-500.0,0.00038356,30]
[324934497,1714438244232,-500.0,0.00038356,30]
[324934498,1714438244242,-500.0,0.00038356,30]
[324934499,1714438244251,-500.0,0.00038356,30]
[324934500,1714438244260,-500.0,0.00038356,14]
[324934501,1714438244269,-500.0,0.00038356,30]
[324934502,1714438244278,-500.0,0.00038356,30]
[324934503,1714438244288,-500.0,0.00038356,30]
[324934504,1714438244298,-500.0,0.00038356,30]
[324934505,1714438244307,-598.6,0.00038356,30]
[324934506,1714438244316,-500.0,0.00038356,30]
[324934507,1714438244326,-911.66,0.00038356,30]
[324934508,1714438244335,-500.0,0.00038356,30]
[324934509,1714438244344,-500.0,0.00038356,30]
[324934510,1714438244358,-500.0,0.00038356,30]
[324934511,1714438244368,-500.0,0.00038356,30]
[324934512,1714438244377,-500.0,0.00038356,30]
[324934513,1714438244386,-500.0,0.00038356,30]
[324934514,1714438244395,-508.68,0.00038356,30]
[324934515,1714438244404,-797.51,0.00038356,30]
[324934516,1714438244413,-500.0,0.00038356,30]
[324934517,1714438244423,-583.37,0.00038356,30]
[324934518,1714438244431,-611.21,0.00038356,30]
[324934519,1714438244441,-500.0,0.00038356,2]
[324934520,1714438244452,-500.0,0.00038356,30]
[324934521,1714438244462,-500.0,0.00038356,30]
[324934522,1714438244472,-230.3143349,0.00038356,30]
[324934523,1714438244482,-500.0,0.00038356,30]
[324934524,1714438244491,-430.17723298,0.00038356,30]
[324934525,1714438244500,-500.0,0.00038356,30]
[324934526,1714438244510,-500.0,0.00038356,30]
[324934527,1714438244519,-500.0,0.00038356,30]
[324934528,1714438244530,-758.9,0.00038356,30]
[324934529,1714438244539,-503.84790354,0.00038356,30]
[324934530,1714438244548,-925.31,0.00038356,30]
[324934531,1714438244557,-500.0,0.00038356,30]
[324934532,1714438244566,-500.0,0.00038356,30]
[324934533,1714438244575,-500.0,0.00038356,30]
[324934534,1714438244584,-500.0,0.00038356,30]
[324934535,1714438244593,-500.0,0.00038356,30]
[324934536,1714438244607,-500.0,0.00038356,30]
[324934537,1714438244616,-500.0,0.00038356,30]
[324934538,1714438244626,-500.0,0.00038356,30]
[324934539,1714438244635,-500.0,0.00038356,30]
[324934540,1714438244645,-500.0,0.00038356,30]
[324934541,1714438244654,-509.01363689,0.00038356,30]
[324934542,1714438244663,-631.61,0.00038356,30]
[324934543,1714438244673,-701.64,0.00038356,30]
[324934544,1714438244682,-677.37,0.00038356,30]
[324934545,1714438244692,-500.0,0.00038356,30]
[324934546,1714438244701,-500.0,0.00038356,30]
[324934547,1714438244710,-500.0,0.00038356,30]
[324934548,1714438244719,-198.91,0.00038356,30]
[324934549,1714438244728,-751.02,0.00038356,30]
[324934550,1714438244737,-555.82,0.00038356,30]
[324934551,1714438244746,-500.0,0.00038356,30]
[324934552,1714438244755,-500.0,0.00038356,30]
[324934553,1714438244764,-1042.68,0.00038356,30]
[324934554,1714438244774,-500.0,0.00038356,30]
[324934555,1714438244783,-500.0,0.00038356,2]
[324934556,1714438244792,-628.98,0.00038356,30]
[324934557,1714438244801,-500.0,0.00038356,30]
[324934558,1714438244811,-500.0,0.00038356,2]
[324934559,1714438244819,-500.0,0.00038356,30]
[324934560,1714438244829,-500.0,0.00038356,30]
[324934561,1714438244838,-500.0,0.00038356,30]
[324934562,1714438244851,-500.0,0.00038356,30]
[324934563,1714438244860,-500.0,0.00038356,30]
[324934564,1714438244870,-500.0,0.00038356,30]
[324934565,1714438244879,-680.92,0.00038356,30]
[324934566,1714438244888,-531.83,0.00038356,30]
[324934567,1714438244897,-500.0,0.00038356,30]
[324934568,1714438244906,-500.0,0.00038356,30]
[324934569,1714438244915,-500.0,0.00038356,30]
[324934570,1714438244924,-500.0,0.00038356,30]
[324934571,1714438244934,-500.0,0.00038356,30]
[324934572,1714438244943,-535.77,0.00038356,30]
[324934573,1714438244952,-500.0,0.00038356,30]
[324934574,1714438244961,-500.0,0.00038356,30]
[324934575,1714438244970,-500.0,0.00038356,30]
[324934576,1714438244980,-500.0,0.00038356,30]
[324934577,1714438244988,-665.96,0.00038356,30]
[324934578,1714438244998,-500.0,0.00038356,30]
[324934579,1714438245007,-500.0,0.00038356,30]
[324934580,1714438245016,-500.0,0.00038356,30]
[324934581,1714438245025,-500.0,0.00038356,30]
[324934582,1714438245034,-500.0,0.00038356,30]
[324934583,1714438245044,-527.51,0.00038356,30]
[324934584,1714438245053,-928.86,0.00038356,30]
[324934585,1714438245062,-500.0,0.00038356,30]
[324934586,1714438245071,-500.0,0.00038356,30]
[324934587,1714438245080,-500.0,0.00038356,30]
[324934588,1714438245089,-500.0,0.00038356,30]
[324934589,1714438245102,-500.0,0.00038356,30]
[324934590,1714438245111,-500.0,0.00038356,30]
[324934591,1714438245120,-500.0,0.00038356,30]
[324934592,1714438245129,-1014.31,0.00038356,30]
[324934593,1714438245138,-500.0,0.00038356,30]
[324934594,1714438245147,-500.0,0.00038356,30]
[324934595,1714438245157,-500.0,0.00038356,30]
[324934596,1714438245166,-500.0,0.00038356,30]
[324934597,1714438245175,-540.7,0.00038356,30]
[324934598,1714438245185,-500.0,0.00038356,30]
[324934599,1714438245194,-500.0,0.00038356,30]
[324934600,1714438245203,-657.37,0.00038356,30]
[324934601,1714438245212,-500.0,0.00038356,30]
[324934602,1714438245222,-500.0,0.00038356,30]
[324934604,1714438245231,-500.0,0.00038356,30]
[324934606,1714438245240,-759.56,0.00038356,30]
[324934608,1714438245250,-500.0,0.00038356,30]
[324934610,1714438245259,-500.0,0.00038356,30]
[324934612,1714438245268,-500.0,0.00038356,30]
[324934614,1714438245278,-500.0,0.00038356,30]
[324934616,1714438245287,-500.0,0.00038356,30]
[324934618,1714438245296,-932.19,0.00038356,30]
[324934620,1714438245306,-500.0,0.00038356,30]
[324934622,1714438245315,-500.0,0.00038356,30]
[324934624,1714438245324,-500.0,0.00038356,30]
[324934626,1714438245334,-500.0,0.00038356,30]
[324934628,1714438245343,-500.0,0.00038356,30]
[324934630,1714438245356,-500.0,0.00038356,30]
[324934632,1714438245365,-500.0,0.00038356,30]
[324934634,1714438245374,-493.74161659,0.00038356,30]
[324934636,1714438245383,-500.0,0.00038356,30]
[324934637,1714438245392,-151.39258846,0.00038356,30]
[324934638,1714438245401,-500.0,0.00038356,30]
[324934639,1714438245411,-500.0,0.00038356,30]
[324934640,1714438245420,-500.0,0.00038356,30]
[324934641,1714438245429,-500.0,0.00038356,30]
[324934642,1714438245439,-685.71,0.00038356,30]
[324934643,1714438245452,-500.0,0.00038356,30]
[324934644,1714438245462,-500.0,0.00038356,30]
[324934646,1714438245472,-500.0,0.00038356,30]
[324934647,1714438245482,-500.0,0.00038356,30]
[324934649,1714438245492,-500.0,0.00038356,30]
[324934651,1714438245501,-500.0,0.00038356,30]
[324934653,1714438245510,-589.76,0.00038356,30]
[324934655,1714438245519,-500.0,0.00038356,30]
[324934657,1714438245529,-500.0,0.00038356,30]
[324934659,1714438245540,-500.0,0.00038356,30]
[324934661,1714438245549,-535.09,0.00038356,30]
[324934663,1714438245559,-500.0,0.00038356,30]
[324934665,1714438245568,-500.0,0.00038356,30]
[324934667,1714438245578,-500.0,0.00038356,30]
[324934669,1714438245587,-500.0,0.00038356,30]
[324934670,1714438245596,-500.0,0.00038356,30]
[324934671,1714438245614,-500.0,0.00038356,30]
[324934672,1714438245623,-500.0,0.00038356,30]
[324934673,1714438245632,-500.0,0.00038356,30]
[324934674,1714438245642,-500.0,0.00038356,30]
[324934675,1714438245651,-500.0,0.00038356,30]
[324934676,1714438245660,-581.3038026,0.00038356,30]
[324934677,1714438245670,-500.0,0.00038356,30]
[324934678,1714438245679,-500.0,0.00038356,30]
[324934679,1714438245689,-500.0,0.00038356,30]
[324934680,1714438245698,-473.78929773,0.00038356,30]
[324934681,1714438245707,-500.0,0.00038356,30]
[324934682,1714438245716,-500.0,0.00038356,30]
[324934683,1714438245725,-500.0,0.00038356,30]
[324934684,1714438245735,-214.30521006,0.00038356,30]
[324934690,1714438245854,-282.39252065,0.00038356,30]
[324934692,1714438245864,-471.65007734,0.00038356,30]
[324934694,1714438245874,-500.0,0.00038356,30]
[324934696,1714438245884,-485.6655,0.00038356,30]
[324934698,1714438245894,-500.0,0.00038356,30]
[324934700,1714438245903,-894.07,0.00038356,30]
[324934702,1714438245912,-500.0,0.00038356,30]
[324934704,1714438245921,-500.0,0.00038356,30]
[324934706,1714438245931,-500.0,0.00038356,30]
[324934708,1714438245940,-500.0,0.00038356,30]
[324934710,1714438245949,-500.0,0.00038356,30]
[324934712,1714438245958,-500.0,0.00038356,30]
[324934714,1714438245967,-500.0,0.00038356,30]
[324934716,1714438245977,-500.0,0.00038356,30]
[324934718,1714438245986,-500.0,0.00038356,30]
[324934720,1714438245995,-309.62844586,0.00038356,30]
[324934722,1714438246004,-500.0,0.00038356,30]
[324934724,1714438246014,-500.0,0.00038356,30]
[324934726,1714438246023,-500.0,0.00038356,30]
[324934728,1714438246032,-500.0,0.00038356,30]
[324934731,1714438246041,-500.0,0.00038356,30]
[324934734,1714438246051,-745.69,0.00038356,30]
[324934736,1714438246060,-500.0,0.00038356,30]
[324934740,1714438246070,-1016.68,0.00038356,30]
[324934742,1714438246079,-605.63,0.00038356,30]
[324934745,1714438246088,-500.0,0.00038356,30]
[324934748,1714438246097,-511.29597624,0.00038356,30]
[324934750,1714438246110,-1097.52,0.00038356,30]
[324934753,1714438246119,-616.98458286,0.00038356,30]
[324934756,1714438246128,-500.0,0.00038356,30]
[324934759,1714438246136,-500.0,0.00038356,30]
[324934761,1714438246145,-263.69302716,0.00038356,30]
[324934764,1714438246153,-500.0,0.00038356,30]
[324934766,1714438246164,-1036.00453959,0.00038356,30]
[324934768,1714438246173,-500.0,0.00038356,3]
[324934770,1714438246184,-821.57,0.00038356,30]
[324934772,1714438246195,-500.0,0.00038356,30]
[324934774,1714438246206,-1102.34,0.00038356,30]
[324934776,1714438246216,-500.0,0.00038356,30]
[324934778,1714438246227,-500.0,0.00038356,30]
[324934780,1714438246237,-500.0,0.00038356,30]
[324934782,1714438246247,-520.295576,0.00038356,30]
[324934784,1714438246257,-637.24629471,0.00038356,30]
[324934786,1714438246266,-500.0,0.00038356,30]
[324934788,1714438246280,-500.0,0.00038356,30]
[324934790,1714438246291,-1070.45,0.00038356,30]
[324934792,1714438246300,-500.0,0.00038356,30]
[324934794,1714438246310,-500.0,0.00038356,30]
[324934796,1714438246319,-500.0,0.00038356,30]
[324934798,1714438246328,-500.0,0.00038356,30]
[324934800,1714438246339,-569.15,0.00038356,30]
[324934802,1714438246349,-500.0,0.00038356,30]
[324934804,1714438246368,-500.0,0.00038356,30]
[324934806,1714438246377,-500.0,0.00038356,30]
[324934809,1714438246387,-536.07,0.00038356,30]
[324934811,1714438246398,-500.0,0.00038356,30]
[324934813,1714438246407,-500.0,0.00038356,30]
[324934815,1714438246416,-557.24,0.00038356,30]
[324934817,1714438246425,-300.0,0.00038356,7]
[324934819,1714438246435,-500.0,0.00038356,30]
[324934821,1714438246444,-747.49,0.00038356,30]
[324934823,1714438246454,-500.0,0.00038356,30]
[324934825,1714438246467,-500.0,0.00038356,30]
[324934827,1714438246476,-500.0,0.00038356,30]
[324934829,1714438246486,-500.0,0.00038356,30]
[324934831,1714438246495,-500.0,0.00038356,30]
[324934833,1714438246505,-500.0,0.00038356,30]
[324934834,1714438246515,-500.0,0.00038356,30]
[324934837,1714438246525,-652.93,0.00038356,30]
[324934838,1714438246535,-500.0,0.00038356,30]
[324934841,1714438246544,-944.2,0.00038356,30]
[324934843,1714438246554,-541.784272,0.00038356,30]
[324934845,1714438246563,-500.0,0.00038356,30]
[324934847,1714438246572,-500.0,0.00038356,30]
[324934848,1714438246581,-500.0,0.00038356,30]
[324934850,1714438246590,-500.0,0.00038356,30]
[324934852,1714438246599,-500.0,0.00038356,30]
[324934854,1714438246616,-500.0,0.00038356,30]
[324934856,1714438246625,-500.0,0.00038356,30]
[324934858,1714438246634,-500.0,0.00038356,30]
[324934860,1714438246643,-500.0,0.00038356,30]
[324934862,1714438246653,-500.0,0.00038356,30]
[324934863,1714438246662,-565.21859299,0.00038356,30]
[324934865,1714438246672,-500.0,0.00038356,7]
[324934867,1714438246682,-500.0,0.00038356,30]
[324934869,1714438246691,-500.0,0.00038356,30]
[324934871,1714438246701,-500.0,0.00038356,30]
[324934873,1714438246710,-500.0,0.00038356,30]
[324934875,1714438246720,-500.0,0.00038356,30]
[324934877,1714438246729,-500.0,0.00038356,30]
[324934879,1714438246738,-500.0,0.00038356,30]
[324934881,1714438246747,-637.84,0.00038356,30]
[324934883,1714438246756,-500.0,0.00038356,30]
[324934885,1714438246766,-374.77976344,0.00038356,30]
[324934887,1714438246775,-602.7,0.00038356,30]
[324934888,1714438246784,-500.0,0.00038356,30]
[324934889,1714438246793,-500.0,0.00038356,30]
[324934890,1714438246802,-509.54,0.00038356,30]
[324934891,1714438246811,-500.0,0.00038356,30]
[324934892,1714438246820,-500.0,0.00038356,30]
[324934893,1714438246830,-815.14,0.00038356,30]
[324934894,1714438246839,-500.0,0.00038356,30]
[324934895,1714438246848,-500.0,0.00038356,30]
[324934896,1714438246864,-500.0,0.00038356,30]
[324934897,1714438246874,-500.0,0.00038356,30]
[324934898,1714438246883,-500.0,0.00038356,30]
[324934899,1714438246892,-292.68277718,0.00038356,30]
[324934900,1714438246901,-500.0,0.00038356,30]
[324934901,1714438246911,-408.64020841,0.00038356,30]
[324934902,1714438246920,-594.99,0.00038356,30]
[324934903,1714438246929,-537.05482004,0.00038356,30]
[324934904,1714438246938,-500.0,0.00038356,30]
[324934905,1714438246948,-500.0,0.00038356,30]
[324934906,1714438246957,-500.0,0.00038356,30]